bitfinex/quotes_SOLUSD_20251226
["timestamp","ask_amount","ask_price","bid_price","bid_amount"]
[1766769180449,4.50934949,121.72,121.69,0.71]
[1766769180650,4.50934949,121.73,121.69,0.71]
[1766769181754,4.50934949,121.72,121.69,0.71]
[1766769182140,4.50934949,121.71,121.68,15.73]
[1766769182543,4.50934949,121.71,121.69,0.71]
[1766769185251,4.50934949,121.72,121.69,0.71]
[1766769189356,0.71,121.72,121.69,0.71]
[1766769189564,4.50934949,121.72,121.69,0.71]
[1766769190265,3.79934949,121.71,121.68,0.71]
[1766769190445,4.50934949,121.72,121.68,0.71]
[1766769191666,0.71,121.72,121.68,0.71]
[1766769191958,4.50934949,121.72,121.68,0.71]
[1766769193438,0.71,121.71,121.68,0.71]
[1766769193659,4.50934949,121.72,121.68,0.71]
[1766769194161,0.71,121.72,121.69,0.69]
[1766769194548,4.50934949,121.72,121.69,0.69]
[1766769196434,4.49934949,121.71,121.67,0.69]
[1766769199966,4.49934949,121.7,121.67,0.69]
[1766769200348,4.49934949,121.71,121.67,0.69]
[1766769200838,3.79934949,121.71,121.67,0.69]
[1766769201045,0.7,121.7,121.67,0.69]
[1766769201252,4.49934949,121.7,121.67,0.69]
[1766769206373,0.7,121.7,121.68,0.69]
[1766769209977,4.49934949,121.72,121.68,0.69]
[1766769210977,0.7,121.71,121.68,0.69]
[1766769211958,3.79934949,121.73,121.69,0.69]
[1766769212158,0.7,121.78,121.71,0.69]
[1766769212374,4.49934949,121.76,121.71,0.69]
[1766769212858,0.7,121.76,121.71,0.69]
[1766769213180,0.7,121.76,121.73,0.69]
[1766769213855,4.49934949,121.76,121.73,0.69]
[1766769214053,0.7,121.75,121.73,0.69]
[1766769215385,4.49934949,121.75,121.7,24.05835545]
[1766769215567,4.49934949,121.75,121.71,0.69]
[1766769216974,0.7,121.75,121.71,8.21620007]
[1766769217167,0.7,121.75,121.72,0.69]
[1766769222777,0.7,121.78,121.74,0.69]
[1766769224982,0.7,121.78,121.75,0.67]
[1766769225182,2.42996936,121.8,121.75,0.67]
[1766769225183,0.69,121.79,121.75,0.67]
[1766769225766,2.42996936,121.79,121.75,0.67]
[1766769225967,0.69,121.78,121.75,0.67]
[1766769240211,3.11996936,121.78,121.75,0.67]
[1766769242283,0.69,121.77,121.75,0.67]
[1766769244080,3.11996936,121.79,121.75,0.67]
[1766769244507,0.69,121.78,121.75,0.67]
[1766769246417,3.11996936,121.79,121.75,0.67]
[1766769246576,0.69,121.82,121.76,0.67]
[1766769246782,0.69,121.81,121.77,0.67]
[1766769248104,0.69,121.79,121.76,15.0]
[1766769248407,0.69,121.79,121.76,15.67]
[1766769248983,0.69,121.79,121.77,0.67]
[1766769250097,3.11996936,121.8,121.77,0.67]
[1766769251205,0.69,121.8,121.77,0.67]
[1766769252907,2.42996936,121.81,121.77,0.67]
[1766769253110,0.69,121.8,121.77,0.67]
[1766769256812,3.12996936,121.8,121.77,0.66]
[1766769257816,0.7,121.8,121.77,0.66]
[1766769277533,0.7,121.77,121.75,0.66]
[1766769277911,0.7,121.75,121.7,8.21692472]
[1766769278136,25.43767296,121.78,121.7,8.21692472]
[1766769278137,3.12996936,121.74,121.71,0.66]
[1766769279434,0.7,121.75,121.71,0.66]
[1766769279939,4.49710805,121.75,121.71,0.66]
[1766769280151,0.7,121.74,121.71,0.66]
[1766769281539,4.49710805,121.75,121.71,0.66]
[1766769285218,0.7,121.75,121.71,0.66]
[1766769286938,4.49710805,121.75,121.71,0.66]
[1766769290153,0.7,121.74,121.71,0.66]
[1766769296336,4.49710805,121.75,121.71,0.66]
[1766769296739,0.7,121.75,121.71,0.66]
[1766769296924,4.49710805,121.75,121.71,0.66]
[1766769300348,11.13767296,121.78,121.71,12.01325469]
[1766769300546,11.13767296,121.78,121.74,0.67]
[1766769300742,15.12,121.83,121.77,0.67]
[1766769301044,0.1,121.83,121.8,0.67]
[1766769301260,0.1,121.83,121.82,0.67]
[1766769301629,0.1,121.85,121.83,0.67]
[1766769302450,0.8,121.85,121.82,0.67]
[1766769302652,0.7,121.84,121.81,15.69]
[1766769303644,4.59710805,121.85,121.82,0.67]
[1766769309037,0.8,121.85,121.82,0.67]
[1766769309238,0.8,121.85,121.81,15.69]
[1766769310243,0.8,121.85,121.82,0.67]
[1766769311039,0.8,121.85,121.81,15.02]
[1766769311243,0.8,121.85,121.82,0.67]
[1766769315852,0.8,121.85,121.81,15.69]
[1766769319042,0.8,121.85,121.82,0.67]
[1766769319242,0.72,121.84,121.81,15.02]
[1766769320369,0.72,121.84,121.81,15.69]
[1766769321865,0.82,121.85,121.82,0.67]
[1766769323072,0.82,121.85,121.81,15.69]
[1766769325973,0.72,121.84,121.81,15.69]
[1766769327072,0.72,121.84,121.82,0.67]
[1766769327466,0.72,121.84,121.81,15.69]
[1766769328155,0.72,121.84,121.81,15.02]
[1766769328354,0.1,121.85,121.82,0.67]
[1766769328752,0.82,121.85,121.82,0.67]
[1766769330780,0.1,121.85,121.82,0.67]
[1766769336174,0.1,121.85,121.82,3.79710805]
[1766769336377,0.1,121.85,121.83,0.67]
[1766769337699,0.1,121.86,121.82,12.00580969]
[1766769337860,0.1,121.86,121.85,0.67]
[1766769338061,0.1,121.86,121.84,0.67]
[1766769338261,0.82,121.86,121.83,15.67]
[1766769339978,0.72,121.84,121.83,15.0]
[1766769340153,0.72,121.84,121.81,15.67]
[1766769348093,0.69,121.83,121.81,15.0]
[1766769349872,0.69,121.85,121.81,15.69]
[1766769350079,0.69,121.85,121.82,0.69]
[1766769352390,0.1,121.86,121.83,0.69]
[1766769352579,0.1,121.86,121.82,10.63521584]
[1766769352580,0.1,121.86,121.85,0.69]
[1766769352766,15.1,121.91,121.85,0.69]
[1766769352767,0.69,121.89,121.86,0.69]
[1766769353579,2.52643051,121.91,121.86,0.69]
[1766769353580,0.1,121.91,121.86,0.69]
[1766769353785,0.69,121.9,121.87,0.69]
[1766769354477,0.69,121.9,121.88,0.69]
[1766769354994,0.1,121.91,121.88,0.69]
[1766769355191,0.79,121.91,121.88,0.69]
[1766769356690,0.1,121.93,121.87,15.0]
[1766769356889,0.1,121.93,121.91,0.69]
[1766769357969,0.79,121.93,121.9,26.12767296]
[1766769358169,0.79,121.93,121.9,28.55410347]
[1766769359491,0.79,121.93,121.9,26.12767296]
[1766769360581,0.79,121.93,121.9,15.69]
[1766769360787,0.69,121.92,121.9,15.0]
[1766769360976,0.79,121.93,121.9,18.11643051]
[1766769361175,0.79,121.93,121.9,15.69]
[1766769361497,0.79,121.93,121.9,15.0]
[1766769362199,0.79,121.93,121.9,15.69]
[1766769366794,0.79,121.93,121.9,15.0]
[1766769367000,0.79,121.93,121.9,15.69]
[1766769368091,0.79,121.93,121.9,15.0]
[1766769368480,0.1,121.93,121.87,11.12767296]
[1766769368680,2.42643051,121.9,121.86,15.0]
[1766769368877,0.69,121.89,121.86,15.0]
[1766769369078,0.69,121.89,121.86,15.69]
[1766769374191,0.7,121.91,121.87,0.67]
[1766769374779,2.42643051,121.91,121.87,0.67]
[1766769375101,0.7,121.9,121.87,0.67]
[1766769378606,0.8,121.93,121.88,12.86410347]
[1766769378779,0.8,121.93,121.89,3.09643051]
[1766769379595,0.7,121.91,121.88,15.0]
[1766769379797,0.7,121.9,121.87,0.67]
[1766769383600,0.7,121.9,121.87,3.09643051]
[1766769387311,2.42643051,121.92,121.88,3.09643051]
[1766769387312,0.7,121.92,121.88,3.09643051]
[1766769389389,0.7,121.91,121.88,0.67]
[1766769390412,0.7,121.91,121.87,3.09643051]
[1766769392612,0.7,121.91,121.86,25.43767296]
[1766769392802,0.7,121.89,121.86,28.53410347]
[1766769393696,0.7,121.89,121.87,2.42643051]
[1766769394713,0.7,121.89,121.87,3.09643051]
[1766769397991,0.7,121.89,121.87,0.67]
[1766769399597,0.7,121.9,121.87,0.67]
[1766769399810,0.7,121.9,121.87,3.09643051]
[1766769402498,0.7,121.9,121.87,0.67]
[1766769404721,3.78746106,121.9,121.84,61.3]
[1766769404911,0.69,121.88,121.84,19.48746106]
[1766769406018,0.69,121.86,121.84,15.0]
[1766769406222,0.69,121.86,121.83,14.92513402]
[1766769414626,0.69,121.86,121.82,15.7]
[1766769414829,0.69,121.84,121.79,0.7]
[1766769415013,0.69,121.83,121.79,8.21072102]
[1766769415331,0.69,121.83,121.8,4.48746106]
[1766769416627,0.69,121.83,121.8,0.7]
[1766769416940,0.69,121.83,121.79,14.22513402]
[1766769417107,0.69,121.83,121.8,0.7]
[1766769417828,0.69,121.83,121.79,14.92513402]
[1766769418411,0.69,121.83,121.8,0.7]
[1766769421125,0.69,121.83,121.8,4.48746106]
[1766769421328,0.69,121.83,121.8,0.7]
[1766769421706,0.69,121.83,121.8,4.48746106]
[1766769422013,0.69,121.83,121.8,0.7]
[1766769422218,0.69,121.83,121.8,4.48746106]
[1766769422415,15.0,121.86,121.81,3.78746106]
[1766769422621,0.69,121.85,121.82,4.48746106]
[1766769423843,0.69,121.85,121.81,19.48746106]
[1766769427334,0.69,121.84,121.81,15.7]
[1766769430344,0.69,121.84,121.81,19.48746106]
[1766769431130,0.69,121.85,121.82,0.7]
[1766769435743,3.78746106,121.85,121.81,15.72]
[1766769436041,0.67,121.84,121.81,19.50746106]
[1766769437352,0.67,121.84,121.81,18.78746106]
[1766769437527,0.67,121.86,121.82,0.72]
[1766769442055,4.45746106,121.87,121.83,0.72]
[1766769442427,0.67,121.87,121.83,3.78746106]
[1766769442626,0.67,121.88,121.85,0.72]
[1766769442842,0.67,121.88,121.86,0.72]
[1766769444041,0.67,121.87,121.83,0.72]
[1766769444381,0.67,121.86,121.82,26.15767296]
[1766769444651,4.45746106,121.86,121.83,0.72]
[1766769444843,0.67,121.84,121.8,4.50746106]
[1766769445030,0.67,121.84,121.8,0.72]
[1766769446343,0.67,121.84,121.8,3.78746106]
[1766769446541,0.67,121.84,121.81,0.72]
[1766769449728,3.78746106,121.85,121.81,0.72]
[1766769449934,4.45746106,121.85,121.81,0.72]
[1766769450936,0.67,121.85,121.81,0.72]
[1766769451137,4.45746106,121.85,121.81,0.72]
[1766769452133,0.67,121.84,121.81,0.72]
[1766769456854,4.45746106,121.89,121.83,3.78746106]
[1766769457053,0.67,121.86,121.83,0.72]
[1766769459956,0.67,121.87,121.84,0.72]
[1766769463054,0.67,121.87,121.84,4.50746106]
[1766769464369,0.67,121.87,121.84,0.72]
[1766769467467,0.7,121.88,121.84,0.72]
[1766769467994,17.42524973,121.92,121.87,0.69]
[1766769468267,0.7,121.91,121.88,0.69]
[1766769469265,0.7,121.91,121.87,0.69]
[1766769469666,0.7,121.91,121.88,0.7]
[1766769473375,0.7,121.91,121.87,0.7]
[1766769478878,2.42524973,121.9,121.85,2.42524973]
[1766769479079,0.68,121.89,121.85,3.12524973]
[1766769479297,0.68,121.89,121.86,0.7]
[1766769479773,0.68,121.88,121.84,3.12524973]
[1766769480085,0.68,121.88,121.85,0.7]
[1766769482296,0.68,121.91,121.86,2.42524973]
[1766769482498,0.68,121.91,121.88,0.7]
[1766769482865,0.1,121.93,121.89,2.42524973]
[1766769483173,0.1,121.93,121.9,3.12524973]
[1766769483563,0.78,121.93,121.9,3.12524973]
[1766769483962,0.78,121.93,121.88,18.64223405]
[1766769484162,0.78,121.93,121.87,0.7]
[1766769484163,2.42524973,121.92,121.87,0.7]
[1766769484364,0.68,121.91,121.88,0.7]
[1766769484577,0.68,121.91,121.88,3.12524973]
[1766769488183,0.68,121.91,121.88,0.7]
[1766769488387,0.68,121.91,121.88,3.12524973]
[1766769489791,0.68,121.91,121.88,0.7]
[1766769492492,0.68,121.91,121.89,0.7]
[1766769493186,0.68,121.92,121.89,0.7]
[1766769493386,0.68,121.92,121.89,3.12524973]
[1766769494385,0.76,121.93,121.9,0.72]
[1766769495289,0.76,121.93,121.89,2.42524973]
[1766769495468,0.76,121.93,121.89,3.14524973]
[1766769496980,0.76,121.93,121.89,0.72]
[1766769499284,0.66,121.92,121.88,0.72]
[1766769499484,0.66,121.92,121.88,3.14524973]
[1766769499884,0.66,121.92,121.89,0.72]
[1766769500893,0.1,121.93,121.89,2.42524973]
[1766769501098,0.76,121.93,121.9,0.72]
[1766769503802,0.76,121.93,121.88,8.20467277]
[1766769503988,0.76,121.93,121.89,3.14524973]
[1766769505101,0.76,121.93,121.89,0.72]
[1766769508502,0.1,121.93,121.9,2.42524973]
[1766769508796,0.1,121.93,121.91,0.72]
[1766769513002,0.1,121.93,121.91,2.42524973]
[1766769513197,0.1,121.93,121.92,0.72]
[1766769513399,0.1,121.93,121.92,3.14524973]
[1766769513600,0.1,121.93,121.92,0.72]
[1766769513891,0.1,121.93,121.9,15.0]
[1766769514103,0.76,121.93,121.91,0.72]
[1766769515210,0.1,121.95,121.91,10.6279647]
[1766769515387,0.1,121.95,121.92,0.72]
[1766769515711,0.1,121.95,121.93,0.72]
[1766769515913,0.76,121.95,121.93,0.72]
[1766769517711,0.1,121.95,121.93,0.72]
[1766769518816,0.1,121.95,121.91,2.42524973]
[1766769519003,0.76,121.95,121.92,0.72]
[1766769535728,0.1,121.95,121.92,3.78446189]
[1766769535930,0.1,121.95,121.93,0.66]
[1766769536126,0.79,121.95,121.93,0.66]
[1766769536813,0.1,121.95,121.93,4.44446189]
[1766769537022,0.1,121.95,121.94,0.66]
[1766769537418,0.1,121.95,121.93,0.66]
[1766769538406,0.79,121.95,121.92,0.66]
[1766769539005,0.79,121.95,121.92,4.44446189]
[1766769539631,0.79,121.95,121.93,0.66]
[1766769539832,0.1,121.95,121.93,0.66]
[1766769540332,0.69,121.94,121.91,12.64709695]
[1766769540835,0.79,121.95,121.9,91.34247939]
[1766769541035,0.79,121.95,121.91,0.66]
[1766769541819,0.79,121.95,121.91,4.44446189]
[1766769542139,0.79,121.95,121.92,0.66]
[1766769542736,0.1,121.95,121.93,0.66]
[1766769542921,0.79,121.95,121.93,0.66]
[1766769543238,0.79,121.95,121.92,0.66]
[1766769547326,3.88446189,121.95,121.9,25.43767296]
[1766769547526,3.88446189,121.95,121.9,26.09767296]
[1766769547527,0.69,121.93,121.9,26.09767296]
[1766769547725,0.69,121.93,121.9,15.0]
[1766769548231,0.69,121.93,121.89,11.09767296]
[1766769548430,0.69,121.93,121.89,14.88213485]
[1766769549234,0.69,121.93,121.89,14.22213485]
[1766769549479,0.79,121.95,121.92,0.66]
[1766769549641,0.79,121.95,121.91,3.78446189]
[1766769551617,0.79,121.95,121.91,4.44446189]
[1766769552035,0.79,121.95,121.91,0.66]
[1766769552338,0.69,121.94,121.9,4.44446189]
[1766769552635,0.69,121.94,121.9,0.66]
[1766769555144,0.69,121.94,121.89,14.22213485]
[1766769555145,0.72,121.93,121.89,11.12767296]
[1766769555641,0.72,121.93,121.89,14.91213485]
[1766769556418,0.72,121.92,121.89,10.43767296]
[1766769556621,0.72,121.91,121.88,87.40767296]
[1766769556815,0.72,121.91,121.88,11.12767296]
[1766769557349,0.72,121.91,121.86,14.98]
[1766769557549,0.72,121.91,121.87,0.69]
[1766769557749,0.72,121.9,121.86,14.98]
[1766769558122,0.72,121.9,121.86,15.67]
[1766769558627,0.72,121.9,121.87,0.69]
[1766769564564,0.72,121.94,121.9,0.69]
[1766769564749,0.72,121.94,121.91,4.47446189]
[1766769565052,0.1,121.95,121.93,3.78446189]
[1766769565828,0.82,121.95,121.91,19.47446189]
[1766769567831,0.82,121.95,121.92,0.69]
[1766769568136,0.82,121.95,121.92,4.47446189]
[1766769568650,0.82,121.95,121.92,0.69]
[1766769569344,0.82,121.95,121.91,19.47446189]
[1766769570868,0.82,121.95,121.91,15.0]
[1766769572337,0.82,121.95,121.9,4.47446189]
[1766769572532,0.72,121.94,121.9,0.69]
[1766769575556,0.72,121.94,121.89,19.45446189]
[1766769578166,0.72,121.94,121.9,0.69]
[1766769578755,0.72,121.94,121.9,4.47446189]
[1766769579489,0.72,121.94,121.9,0.69]
[1766769581071,0.72,121.94,121.9,4.47446189]
[1766769585073,0.1,121.95,121.91,0.68]
[1766769585365,0.8,121.95,121.91,4.46446189]
[1766769585567,0.8,121.95,121.9,3.78446189]
[1766769585771,0.8,121.95,121.9,4.46446189]
[1766769587477,0.7,121.94,121.9,4.46446189]
[1766769587681,0.7,121.94,121.91,0.68]
[1766769588180,0.7,121.94,121.91,3.10228435]
[1766769588553,0.7,121.94,121.91,0.68]
[1766769591372,0.8,121.95,121.92,0.68]
[1766769592375,0.1,121.95,121.92,2.42228435]
[1766769592579,0.1,121.95,121.93,2.42228435]
[1766769592883,0.1,121.95,121.94,0.68]
[1766769595477,0.7,121.94,121.91,0.68]
[1766769595782,0.7,121.94,121.91,3.10228435]
[1766769596479,0.7,121.94,121.91,2.42228435]
[1766769596891,0.7,121.93,121.89,3.10228435]
[1766769597974,0.7,121.92,121.89,0.68]
[1766769601484,0.7,121.91,121.88,25.41767296]
[1766769601688,0.7,121.9,121.86,3.10228435]
[1766769602270,0.7,121.9,121.87,0.68]
[1766769602786,0.7,121.92,121.87,2.42228435]
[1766769603085,0.7,121.92,121.89,0.68]
[1766769604486,0.7,121.92,121.88,3.10228435]
[1766769605085,0.7,121.92,121.86,8.20605982]
[1766769605086,0.7,121.9,121.86,3.10228435]
[1766769605795,0.7,121.9,121.86,0.68]
[1766769607865,2.42228435,121.89,121.85,0.68]
[1766769608060,2.42228435,121.89,121.84,0.68]
[1766769608061,0.7,121.88,121.84,0.68]
[1766769609088,0.7,121.88,121.84,3.10228435]
[1766769609773,0.7,121.88,121.84,0.68]
[1766769609975,0.7,121.88,121.84,3.10228435]
[1766769618091,0.7,121.88,121.84,2.42228435]
[1766769618279,0.7,121.88,121.85,3.08228435]
[1766769618479,0.7,121.88,121.85,0.66]
[1766769618679,0.7,121.88,121.85,3.08228435]
[1766769619285,0.7,121.88,121.85,0.66]
[1766769620499,0.7,121.88,121.84,3.08228435]
[1766769621991,0.7,121.88,121.85,0.66]
[1766769626002,0.7,121.88,121.84,3.08228435]
[1766769626698,0.7,121.88,121.84,0.66]
[1766769626878,0.68,121.87,121.84,0.66]
[1766769632823,0.68,121.87,121.84,3.08228435]
[1766769633318,0.68,121.87,121.84,0.66]
[1766769644710,2.42228435,121.89,121.84,0.66]
[1766769645023,0.72,121.88,121.84,0.66]
[1766769646416,0.72,121.88,121.84,3.08228435]
[1766769646624,0.72,121.88,121.85,0.69]
[1766769648818,0.72,121.87,121.83,10.43767296]
[1766769649018,0.72,121.86,121.83,10.43767296]
[1766769649214,0.72,121.86,121.83,11.12767296]
[1766769650605,0.72,121.86,121.82,0.69]
[1766769650606,3.790198,121.86,121.82,0.69]
[1766769650806,0.72,121.85,121.82,0.69]
[1766769651326,0.72,121.84,121.81,0.69]
[1766769652924,0.72,121.83,121.79,0.89]
[1766769653609,15.0,121.85,121.79,0.89]
[1766769653803,3.790198,121.83,121.79,0.89]
[1766769654217,3.790198,121.83,121.8,0.69]
[1766769654545,3.790198,121.84,121.8,0.69]
[1766769655727,0.72,121.83,121.8,0.69]
[1766769655925,4.510198,121.83,121.8,0.69]
[1766769656107,3.790198,121.83,121.8,0.69]
[1766769656309,0.72,121.82,121.8,0.69]
[1766769658027,0.72,121.82,121.79,0.2]
[1766769658220,0.72,121.82,121.79,0.89]
[1766769659325,0.72,121.82,121.8,0.69]
[1766769659921,0.72,121.82,121.79,0.89]
[1766769660430,0.72,121.82,121.8,0.69]
[1766769662229,0.72,121.82,121.79,0.2]
[1766769662420,0.72,121.82,121.79,0.89]
[1766769664610,0.72,121.82,121.79,0.2]
[1766769664811,0.72,121.81,121.79,0.2]
[1766769665614,0.72,121.81,121.79,0.89]
[1766769666725,3.790198,121.83,121.79,0.2]
[1766769666924,133.5,121.87,121.81,3.790198]
[1766769667127,0.72,121.85,121.82,0.69]
[1766769667432,0.72,121.85,121.81,0.69]
[1766769667931,0.72,121.85,121.81,4.480198]
[1766769668306,0.72,121.85,121.81,0.69]
[1766769669737,0.72,121.85,121.81,3.790198]
[1766769669932,0.72,121.85,121.82,0.69]
[1766769671937,0.72,121.85,121.81,3.790198]
[1766769672142,0.72,121.85,121.81,4.480198]
[1766769673741,0.72,121.85,121.81,0.69]
[1766769675819,0.72,121.85,121.81,4.480198]
[1766769676025,0.7,121.86,121.83,0.7]
[1766769678527,0.7,121.86,121.8,18.64758831]
[1766769678528,0.7,121.86,121.8,10.43767296]
[1766769678733,0.7,121.82,121.79,0.9]
[1766769678931,0.7,121.82,121.8,0.7]
[1766769679821,0.7,121.83,121.8,0.7]
[1766769681141,4.490198,121.83,121.8,0.7]
[1766769681640,0.7,121.82,121.8,0.7]
[1766769681841,0.7,121.82,121.79,0.9]
[1766769682428,0.7,121.82,121.79,0.2]
[1766769683237,0.7,121.82,121.79,0.9]
[1766769685258,3.790198,121.84,121.8,0.7]
[1766769685259,0.7,121.84,121.8,0.7]
[1766769688759,3.790198,121.84,121.8,0.7]
[1766769688960,0.7,121.83,121.8,0.7]
[1766769689459,0.7,121.82,121.79,0.9]
[1766769689961,0.7,121.84,121.8,0.7]
[1766769692472,0.7,121.82,121.79,0.9]
[1766769692752,0.7,121.81,121.79,0.2]
[1766769693557,3.790198,121.81,121.79,0.2]
[1766769693860,0.7,121.8,121.79,0.2]
[1766769695555,0.7,121.79,121.76,0.2]
[1766769695739,0.7,121.78,121.76,0.2]
[1766769697282,4.490198,121.8,121.76,0.9]
[1766769698392,0.7,121.79,121.76,0.9]
[1766769700485,0.7,121.83,121.79,0.7]
[1766769700686,0.7,121.83,121.8,0.7]
[1766769707889,4.490198,121.83,121.8,0.7]
[1766769709093,0.7,121.83,121.8,0.7]
[1766769720299,146.36490706,121.85,121.8,0.7]
[1766769720497,0.7,121.84,121.8,0.7]
[1766769720887,0.7,121.82,121.79,0.67]
[1766769721095,0.7,121.8,121.76,0.87]
[1766769721286,3.1272341,121.79,121.76,0.87]
[1766769721486,15.0,121.79,121.76,0.2]
[1766769721688,2.4272341,121.77,121.75,0.2]
[1766769721990,3.1272341,121.77,121.75,0.2]
[1766769724678,2.4272341,121.76,121.73,0.2]
[1766769724884,0.6,121.73,121.71,0.2]
[1766769725093,2.4272341,121.72,121.71,0.2]
[1766769725296,3.0272341,121.73,121.71,0.2]
[1766769726099,0.6,121.75,121.71,0.2]
[1766769726302,18.0272341,121.77,121.72,0.67]
[1766769726694,0.6,121.76,121.72,0.67]
[1766769726897,3.0272341,121.76,121.72,0.67]
[1766769727607,15.0,121.77,121.72,0.67]
[1766769727608,3.0272341,121.75,121.72,0.67]
[1766769730806,2.4272341,121.73,121.71,0.2]
[1766769731011,3.0272341,121.73,121.71,0.2]
[1766769735608,15.02,121.74,121.71,0.2]
[1766769735907,18.0472341,121.74,121.71,0.2]
[1766769736413,2.4272341,121.72,121.7,0.2]
[1766769736618,3.0272341,121.71,121.69,0.2]
[1766769737094,3.0272341,121.72,121.69,0.2]
[1766769737283,3.0272341,121.72,121.69,0.87]
[1766769743797,3.0272341,121.71,121.69,0.2]
[1766769746698,0.6,121.71,121.69,0.2]
[1766769750602,0.6,121.71,121.69,0.87]
[1766769751101,0.6,121.71,121.69,0.2]
[1766769751306,3.0272341,121.71,121.69,0.2]
[1766769751817,0.6,121.71,121.69,0.2]
[1766769754222,3.0272341,121.72,121.69,0.87]
[1766769755123,3.0272341,121.71,121.69,0.2]
[1766769755307,3.0272341,121.71,121.69,0.87]
[1766769755502,3.0272341,121.72,121.69,0.87]
[1766769756610,3.0272341,121.71,121.69,0.87]
[1766769757409,3.0272341,121.71,121.69,0.2]
[1766769760515,0.6,121.7,121.69,0.2]
[1766769761021,2.4272341,121.7,121.69,0.2]
[1766769761226,0.6,121.71,121.69,0.2]
[1766769761537,3.0272341,121.71,121.69,0.2]
[1766769763334,0.6,121.71,121.69,0.2]
[1766769763536,3.0272341,121.71,121.69,0.2]
[1766769765331,10.43767296,121.67,121.66,0.2]
[1766769765627,42.86490706,121.67,121.63,0.2]
[1766769765814,42.86490706,121.67,121.62,0.1]
[1766769765815,2.4272341,121.64,121.62,0.1]
[1766769766015,2.4272341,121.63,121.6,0.82]
[1766769766327,2.4272341,121.62,121.6,0.82]
[1766769768927,45.02,121.65,121.6,0.82]
[1766769768928,32.4272341,121.65,121.6,0.82]
[1766769769120,47.4472341,121.65,121.6,0.82]
[1766769769520,2.4272341,121.64,121.6,0.82]
[1766769770027,3.80453196,121.64,121.6,0.82]
[1766769775146,3.80453196,121.66,121.61,0.72]
[1766769775949,3.80453196,121.64,121.61,0.72]
[1766769778445,25.43767296,121.67,121.61,0.72]
[1766769778446,3.80453196,121.65,121.61,0.72]
[1766769780240,3.80453196,121.64,121.61,0.72]
[1766769780438,3.80453196,121.63,121.61,0.72]
[1766769780644,15.0,121.6,121.59,0.2]
[1766769780847,15.0,121.6,121.58,0.1]
[1766769780848,18.80453196,121.6,121.58,0.1]
[1766769781035,3.80453196,121.59,121.57,0.1]